[Event "Titled Tuesday Blitz June 20 Late 2023"]
[White "Carlsen, Magnus"]
[Black "Dushyant Sharma"]
[WhiteFideId "1503014"]
[BlackFideId "25065130"]
[WhiteElo "2858"]
[BlackElo "2198"]
[Result "1-0"]
[Round "1"]
[TimeControl "180+2"]
[Date "2023.06.20"]
[WhiteClock "0:01:46"]
[BlackClock "0:00:00"]
[Board "1"]

1. g4 {[%clk 0:03:00]}  d5 {[%clk 0:02:58]} 2. h3 {[%clk 0:02:59]}  e5 {[%clk 0:02:52]} 3. Bg2 {[%clk 0:02:58]}  c6 {[%clk 0:02:50]} 4. d3 {[%clk 0:02:58]}  Bd6 {[%clk 0:02:35]} 5. c4 {[%clk 0:02:55]}  Be6 {[%clk 0:02:32]} 6. Nf3 {[%clk 0:02:54]}  h6 {[%clk 0:02:25]} 7. Nc3 {[%clk 0:02:50]}  Nd7 {[%clk 0:02:19]} 8. cxd5 {[%clk 0:02:39]}  cxd5 {[%clk 0:02:19]} 9. g5 {[%clk 0:02:37]}  h5 {[%clk 0:01:26]} 10. g6 {[%clk 0:02:36]}  f6 {[%clk 0:01:21]} 11. Nh4 {[%clk 0:02:29]}  Ne7 {[%clk 0:01:14]} 12. e4 {[%clk 0:02:30]}  d4 {[%clk 0:01:10]} 13. Nd5 {[%clk 0:02:28]}  Nxd5 {[%clk 0:01:07]} 14. exd5 {[%clk 0:02:29]}  Bxd5 {[%clk 0:01:08]} 15. O-O {[%clk 0:02:26]}  Bxg2 {[%clk 0:01:01]} 16. Kxg2 {[%clk 0:02:27]}  Qb6 {[%clk 0:01:01]} 17. Nf5 {[%clk 0:02:26]}  O-O-O {[%clk 0:00:58]} 18. Qf3 {[%clk 0:02:25]}  Nf8 {[%clk 0:00:51]} 19. a4 {[%clk 0:02:20]}  Nxg6 {[%clk 0:00:46]} 20. Bd2 {[%clk 0:02:18]}  Kb8 {[%clk 0:00:44]} 21. Rfc1 {[%clk 0:02:16]}  Rc8 {[%clk 0:00:27]} 22. a5 {[%clk 0:02:15]}  Qa6 {[%clk 0:00:27]} 23. b4 {[%clk 0:02:12]}  Ne7 {[%clk 0:00:17]} 24. b5 {[%clk 0:02:09]}  Nxf5 {[%clk 0:00:16]} 25. Qxf5 {[%clk 0:02:10]}  Qxb5 {[%clk 0:00:15]} 26. Rab1 {[%clk 0:02:09]}  Qd5+ {[%clk 0:00:15]} 27. Kg1 {[%clk 0:02:03]}  g6 {[%clk 0:00:14]} 28. Qxf6 {[%clk 0:02:02]}  Rhf8 {[%clk 0:00:13]} 29. Rxc8+ {[%clk 0:01:58]}  Kxc8 {[%clk 0:00:09]} 30. Qg7 {[%clk 0:01:53]}  Qf7 {[%clk 0:00:09]} 31. Qxf7 {[%clk 0:01:53]}  Rxf7 {[%clk 0:00:09]} 32. Kf1 {[%clk 0:01:51]}  Rc7 {[%clk 0:00:08]} 33. Ke2 {[%clk 0:01:49]}  Rc6 {[%clk 0:00:09]} 34. Rg1 {[%clk 0:01:47]}  Be7 {[%clk 0:00:08]} 35. Kf3 {[%clk 0:01:48]}  Rc2 {[%clk 0:00:05]} 36. Bh6 {[%clk 0:01:47]}  Bh4 {[%clk 0:00:05]} 37. Rxg6 {[%clk 0:01:47]}  Rxf2+ {[%clk 0:00:05]} 38. Ke4 {[%clk 0:01:47]}  Re2+ {[%clk 0:00:06]} 39. Kd5 {[%clk 0:01:47]}  b6 {[%clk 0:00:05]} 40. a6 {[%clk 0:01:47]}  Ra2 {[%clk 0:00:04]} 41. Rg8+ {[%clk 0:01:47]}  Kd7 {[%clk 0:00:05]} 42. Rg7+ {[%clk 0:01:48]}  Ke8 {[%clk 0:00:05]} 43. Rxa7 {[%clk 0:01:48]}  Ra5+ {[%clk 0:00:03]} 44. Ke6 {[%clk 0:01:48]}  Kd8 {[%clk 0:00:01]} 45. Bf8 {[%clk 0:01:46]}  e4 {[%clk 0:00:00]} 46. Bd6 {[%clk 0:01:46]} 1-0


[Site "https://www.chess.com"]

[Event "Titled Tuesday Blitz June 20 Late 2023"]
[White "Badelka, Olga"]
[Black "Nakamura, Hikaru"]
[WhiteFideId "13509926"]
[BlackFideId "2016192"]
[WhiteElo "2375"]
[BlackElo "2874"]
[Result "0-1"]
[Round "1"]
[TimeControl "180+2"]
[Date "2023.06.20"]
[WhiteClock "0:00:00"]
[BlackClock "0:01:10"]
[Board "2"]

1. d4 {[%clk 0:02:58]}  g6 {[%clk 0:02:59]} 2. e4 {[%clk 0:02:58]}  Bg7 {[%clk 0:02:58]} 3. Nc3 {[%clk 0:02:48]}  a6 {[%clk 0:02:56]} 4. Be3 {[%clk 0:02:44]}  b5 {[%clk 0:02:57]} 5. a3 {[%clk 0:02:40]}  Bb7 {[%clk 0:02:56]} 6. Qd2 {[%clk 0:02:37]}  d6 {[%clk 0:02:56]} 7. f3 {[%clk 0:02:14]}  Nd7 {[%clk 0:02:56]} 8. h4 {[%clk 0:02:02]}  h5 {[%clk 0:02:53]} 9. Nh3 {[%clk 0:02:01]}  e6 {[%clk 0:02:53]} 10. Ng5 {[%clk 0:01:57]}  Nb6 {[%clk 0:02:53]} 11. O-O-O {[%clk 0:01:53]}  Nf6 {[%clk 0:02:52]} 12. Be2 {[%clk 0:01:33]}  Nfd7 {[%clk 0:02:43]} 13. g4 {[%clk 0:01:29]}  Qe7 {[%clk 0:02:42]} 14. gxh5 {[%clk 0:01:24]}  gxh5 {[%clk 0:02:42]} 15. d5 {[%clk 0:01:13]}  exd5 {[%clk 0:02:40]} 16. exd5 {[%clk 0:01:13]}  O-O-O {[%clk 0:02:40]} 17. Bd4 {[%clk 0:01:07]}  Bxd4 {[%clk 0:02:29]} 18. Qxd4 {[%clk 0:01:06]}  Rdf8 {[%clk 0:02:26]} 19. a4 {[%clk 0:01:04]}  Nxa4 {[%clk 0:02:22]} 20. Nxa4 {[%clk 0:01:03]}  Qxe2 {[%clk 0:02:23]} 21. Nc3 {[%clk 0:01:01]}  Qe5 {[%clk 0:02:17]} 22. Qa7 {[%clk 0:00:48]}  Re8 {[%clk 0:02:13]} 23. Rhe1 {[%clk 0:00:37]}  Qf4+ {[%clk 0:02:07]} 24. Kb1 {[%clk 0:00:38]}  Nb6 {[%clk 0:02:07]} 25. Nce4 {[%clk 0:00:22]}  Nxd5 {[%clk 0:01:26]} 26. Rxd5 {[%clk 0:00:05]}  Bxd5 {[%clk 0:01:26]} 27. Qxa6+ {[%clk 0:00:04]}  Bb7 {[%clk 0:01:26]} 28. Qxb5 {[%clk 0:00:04]}  Re5 {[%clk 0:01:26]} 29. Qb4 {[%clk 0:00:02]}  Kb8 {[%clk 0:01:24]} 30. Rc1 {[%clk 0:00:00]}  f5 {[%clk 0:01:10]} 0-1


[Site "https://www.chess.com"]

[Event "Titled Tuesday Blitz June 20 Late 2023"]
[White "Firouzja, Alireza"]
[Black "Richter, Paul"]
[WhiteFideId "12573981"]
[BlackFideId "2046350"]
[WhiteElo "2896"]
[BlackElo "2522"]
[Result "1/2-1/2"]
[Round "1"]
[TimeControl "180+2"]
[Date "2023.06.20"]
[WhiteClock "0:00:49"]
[BlackClock "0:00:07"]
[Board "3"]

1. e4 {[%clk 0:02:59]}  c5 {[%clk 0:02:59]} 2. Nf3 {[%clk 0:02:39]}  d6 {[%clk 0:02:57]} 3. d4 {[%clk 0:02:28]}  cxd4 {[%clk 0:02:58]} 4. Nxd4 {[%clk 0:02:28]}  Nf6 {[%clk 0:02:58]} 5. Nc3 {[%clk 0:02:29]}  g6 {[%clk 0:02:58]} 6. Be3 {[%clk 0:02:29]}  Bg7 {[%clk 0:02:58]} 7. f3 {[%clk 0:02:29]}  O-O {[%clk 0:02:59]} 8. Qd2 {[%clk 0:02:30]}  Nc6 {[%clk 0:02:59]} 9. O-O-O {[%clk 0:02:30]}  d5 {[%clk 0:03:00]} 10. exd5 {[%clk 0:02:29]}  Nxd5 {[%clk 0:03:01]} 11. Nxc6 {[%clk 0:02:29]}  bxc6 {[%clk 0:03:02]} 12. Bd4 {[%clk 0:02:30]}  Bxd4 {[%clk 0:03:02]} 13. Qxd4 {[%clk 0:02:29]}  Qb6 {[%clk 0:03:02]} 14. Na4 {[%clk 0:02:25]}  Qa5 {[%clk 0:03:02]} 15. b3 {[%clk 0:02:18]}  Qc7 {[%clk 0:03:01]} 16. Kb2 {[%clk 0:02:11]}  Rb8 {[%clk 0:02:48]} 17. Bc4 {[%clk 0:01:59]}  Qa5 {[%clk 0:01:57]} 18. Nc3 {[%clk 0:01:29]}  Rd8 {[%clk 0:00:43]} 19. Rhe1 {[%clk 0:01:28]}  Be6 {[%clk 0:00:42]} 20. Qe5 {[%clk 0:01:20]}  Qb4 {[%clk 0:00:19]} 21. Rd4 {[%clk 0:01:15]}  Qxc3+ {[%clk 0:00:17]} 22. Kb1 {[%clk 0:01:13]}  Qa5 {[%clk 0:00:09]} 23. Kb2 {[%clk 0:01:10]}  Qc3+ {[%clk 0:00:07]} 24. Kb1 {[%clk 0:01:10]}  Qa5 {[%clk 0:00:08]} 25. Kb2 {[%clk 0:00:49]}  Qc3+ {[%clk 0:00:07]} 1/2-1/2


[Site "https://www.chess.com"]

[Event "Titled Tuesday Blitz June 20 Late 2023"]
[White "Shapiro, Viktor"]
[Black "Kramnik, Vladimir"]
[WhiteFideId "4175700"]
[BlackFideId "4101588"]
[WhiteElo "2212"]
[BlackElo "2703"]
[Result "1-0"]
[Round "1"]
[TimeControl "180+2"]
[Date "2023.06.20"]
[WhiteClock "0:00:17"]
[BlackClock "0:00:00"]
[Board "4"]

1. c4 {[%clk 0:02:59]}  c5 {[%clk 0:02:59]} 2. Nc3 {[%clk 0:03:00]}  g6 {[%clk 0:02:59]} 3. g3 {[%clk 0:03:00]}  Bg7 {[%clk 0:02:59]} 4. Bg2 {[%clk 0:03:00]}  Nc6 {[%clk 0:02:59]} 5. Nf3 {[%clk 0:03:01]}  d6 {[%clk 0:02:57]} 6. O-O {[%clk 0:03:01]}  Nf6 {[%clk 0:02:55]} 7. d3 {[%clk 0:03:01]}  Bd7 {[%clk 0:02:51]} 8. a3 {[%clk 0:03:02]}  h5 {[%clk 0:02:44]} 9. Rb1 {[%clk 0:03:01]}  Qc8 {[%clk 0:02:43]} 10. h4 {[%clk 0:02:58]}  Bh3 {[%clk 0:02:41]} 11. b4 {[%clk 0:02:58]}  Bxg2 {[%clk 0:02:39]} 12. Kxg2 {[%clk 0:02:58]}  b6 {[%clk 0:02:34]} 13. e4 {[%clk 0:02:54]}  O-O {[%clk 0:02:33]} 14. Bg5 {[%clk 0:02:51]}  e6 {[%clk 0:02:28]} 15. Re1 {[%clk 0:02:42]}  Ng4 {[%clk 0:02:26]} 16. Qc2 {[%clk 0:02:15]}  Qd7 {[%clk 0:02:25]} 17. Ne2 {[%clk 0:02:07]}  Rae8 {[%clk 0:02:16]} 18. d4 {[%clk 0:01:59]}  Nxd4 {[%clk 0:02:12]} 19. Nexd4 {[%clk 0:01:59]}  cxd4 {[%clk 0:02:12]} 20. Rbd1 {[%clk 0:01:56]}  e5 {[%clk 0:02:09]} 21. Rc1 {[%clk 0:01:50]}  f5 {[%clk 0:02:04]} 22. c5 {[%clk 0:01:41]}  bxc5 {[%clk 0:01:59]} 23. bxc5 {[%clk 0:01:41]}  dxc5 {[%clk 0:01:43]} 24. Qxc5 {[%clk 0:01:38]}  fxe4 {[%clk 0:01:41]} 25. Rxe4 {[%clk 0:01:35]}  Rc8 {[%clk 0:01:33]} 26. Qa5 {[%clk 0:01:23]}  Qf5 {[%clk 0:01:19]} 27. Qd5+ {[%clk 0:01:15]}  Kh8 {[%clk 0:01:19]} 28. Re2 {[%clk 0:01:09]}  Rxc1 {[%clk 0:01:10]} 29. Bxc1 {[%clk 0:01:09]}  d3 {[%clk 0:01:05]} 30. Re1 {[%clk 0:00:54]}  Rc8 {[%clk 0:00:33]} 31. Bd2 {[%clk 0:00:46]}  Re8 {[%clk 0:00:21]} 32. Qc6 {[%clk 0:00:33]}  Rf8 {[%clk 0:00:21]} 33. Bb4 {[%clk 0:00:27]}  Rc8 {[%clk 0:00:17]} 34. Qd5 {[%clk 0:00:27]}  e4 {[%clk 0:00:14]} 35. Qxe4 {[%clk 0:00:26]}  Qxe4 {[%clk 0:00:13]} 36. Rxe4 {[%clk 0:00:26]}  Bf6 {[%clk 0:00:11]} 37. Re6 {[%clk 0:00:24]}  Rc2 {[%clk 0:00:10]} 38. Be1 {[%clk 0:00:20]}  Kg7 {[%clk 0:00:10]} 39. Rd6 {[%clk 0:00:20]}  Ne3+ {[%clk 0:00:06]} 40. Kg1 {[%clk 0:00:20]}  Nc4 {[%clk 0:00:06]} 41. Rxd3 {[%clk 0:00:20]}  Rc1 {[%clk 0:00:06]} 42. Kg2 {[%clk 0:00:20]}  Rc2 {[%clk 0:00:06]} 43. Bb4 {[%clk 0:00:19]}  a5 {[%clk 0:00:05]} 44. Bc5 {[%clk 0:00:17]}  Ne5 {[%clk 0:00:04]} 45. Nxe5 {[%clk 0:00:16]}  Bxe5 {[%clk 0:00:05]} 46. Be3 {[%clk 0:00:16]}  Rc7 {[%clk 0:00:04]} 47. Rd5 {[%clk 0:00:16]}  Bb2 {[%clk 0:00:02]} 48. Rxa5 {[%clk 0:00:16]}  Kf7 {[%clk 0:00:02]} 49. a4 {[%clk 0:00:17]}  Rc6 {[%clk 0:00:02]} 50. Rb5 {[%clk 0:00:17]}  Bc3 {[%clk 0:00:00]} 51. a5 {[%clk 0:00:17]} 1-0


[Site "https://www.chess.com"]

[Event "Titled Tuesday Blitz June 20 Late 2023"]
[White "Paravyan, David"]
[Black "Srdanovic, Jovana"]
[WhiteFideId "4194985"]
[BlackFideId "954810"]
[WhiteElo "2563"]
[BlackElo "2155"]
[Result "1-0"]
[Round "1"]
[TimeControl "180+2"]
[Date "2023.06.20"]
[WhiteClock "0:02:03"]
[BlackClock "0:00:00"]
[Board "7"]

1. e4 {[%clk 0:02:52]}  c5 {[%clk 0:02:58]} 2. Nf3 {[%clk 0:02:52]}  Nc6 {[%clk 0:02:55]} 3. Bb5 {[%clk 0:02:51]}  g6 {[%clk 0:02:53]} 4. Bxc6 {[%clk 0:02:50]}  dxc6 {[%clk 0:02:54]} 5. O-O {[%clk 0:02:49]}  Bg7 {[%clk 0:02:54]} 6. d3 {[%clk 0:02:49]}  Nf6 {[%clk 0:02:50]} 7. Re1 {[%clk 0:02:48]}  O-O {[%clk 0:02:47]} 8. h3 {[%clk 0:02:46]}  b6 {[%clk 0:02:45]} 9. Nc3 {[%clk 0:02:45]}  Re8 {[%clk 0:02:37]} 10. e5 {[%clk 0:02:45]}  Nd5 {[%clk 0:02:26]} 11. Bd2 {[%clk 0:02:37]}  h6 {[%clk 0:02:13]} 12. a4 {[%clk 0:02:35]}  a5 {[%clk 0:02:12]} 13. Qc1 {[%clk 0:02:30]}  Kh7 {[%clk 0:02:12]} 14. Ne4 {[%clk 0:02:30]}  Be6 {[%clk 0:02:10]} 15. b3 {[%clk 0:02:28]}  Ra7 {[%clk 0:01:38]} 16. c4 {[%clk 0:02:14]}  Nb4 {[%clk 0:01:35]} 17. Bxb4 {[%clk 0:02:14]}  axb4 {[%clk 0:01:31]} 18. a5 {[%clk 0:02:15]}  Qxd3 {[%clk 0:00:37]} 19. axb6 {[%clk 0:02:15]}  Rxa1 {[%clk 0:00:34]} 20. Qxa1 {[%clk 0:02:16]}  Qxb3 {[%clk 0:00:34]} 21. b7 {[%clk 0:02:16]}  Qa3 {[%clk 0:00:18]} 22. Nxc5 {[%clk 0:02:16]}  Rb8 {[%clk 0:00:17]} 23. Nd4 {[%clk 0:02:06]}  Bxc4 {[%clk 0:00:13]} 24. Nxc6 {[%clk 0:02:04]}  Qxa1 {[%clk 0:00:08]} 25. Rxa1 {[%clk 0:02:05]}  Rxb7 {[%clk 0:00:02]} 26. Nxb7 {[%clk 0:02:06]}  b3 {[%clk 0:00:00]} 27. Nba5 {[%clk 0:02:03]} 1-0


[Site "https://www.chess.com"]

[Event "Titled Tuesday Blitz June 20 Late 2023"]
[White "Hnydiuk, Aleksander"]
[Black "Kollars, Dmitrij"]
[WhiteFideId "1109057"]
[BlackFideId "12909572"]
[WhiteElo "2374"]
[BlackElo "2584"]
[Result "0-1"]
[Round "1"]
[TimeControl "180+2"]
[Date "2023.06.20"]
[WhiteClock "0:00:31"]
[BlackClock "0:01:17"]
[Board "10"]

1. e4 {[%clk 0:03:00]}  e5 {[%clk 0:02:59]} 2. Nf3 {[%clk 0:02:56]}  Nc6 {[%clk 0:02:57]} 3. Bb5 {[%clk 0:02:54]}  a6 {[%clk 0:02:56]} 4. Ba4 {[%clk 0:02:54]}  Nf6 {[%clk 0:02:57]} 5. d3 {[%clk 0:02:54]}  Bc5 {[%clk 0:02:57]} 6. O-O {[%clk 0:02:54]}  b5 {[%clk 0:02:57]} 7. Bb3 {[%clk 0:02:53]}  d6 {[%clk 0:02:57]} 8. c3 {[%clk 0:02:52]}  O-O {[%clk 0:02:57]} 9. Nbd2 {[%clk 0:02:48]}  Bb6 {[%clk 0:02:56]} 10. h3 {[%clk 0:02:45]}  Ne7 {[%clk 0:02:56]} 11. Re1 {[%clk 0:02:44]}  Ng6 {[%clk 0:02:56]} 12. Nf1 {[%clk 0:02:41]}  Be6 {[%clk 0:02:54]} 13. d4 {[%clk 0:02:37]}  Bxb3 {[%clk 0:02:52]} 14. axb3 {[%clk 0:02:37]}  exd4 {[%clk 0:02:50]} 15. cxd4 {[%clk 0:02:36]}  d5 {[%clk 0:02:50]} 16. e5 {[%clk 0:02:35]}  Ne4 {[%clk 0:02:50]} 17. Ng3 {[%clk 0:02:18]}  Nxg3 {[%clk 0:02:50]} 18. fxg3 {[%clk 0:02:19]}  f6 {[%clk 0:02:44]} 19. exf6 {[%clk 0:02:08]}  Qxf6 {[%clk 0:02:45]} 20. Kh2 {[%clk 0:02:04]}  c6 {[%clk 0:02:41]} 21. Bg5 {[%clk 0:01:37]}  Qf5 {[%clk 0:02:35]} 22. Rc1 {[%clk 0:01:34]}  Rac8 {[%clk 0:02:35]} 23. Qc2 {[%clk 0:01:24]}  h6 {[%clk 0:02:20]} 24. Qxf5 {[%clk 0:01:21]}  Rxf5 {[%clk 0:02:21]} 25. Be7 {[%clk 0:01:10]}  Rf7 {[%clk 0:01:53]} 26. Bd6 {[%clk 0:01:09]}  Rf6 {[%clk 0:01:51]} 27. Be5 {[%clk 0:01:05]}  Re6 {[%clk 0:01:50]} 28. Bf4 {[%clk 0:01:00]}  Rxe1 {[%clk 0:01:34]} 29. Rxe1 {[%clk 0:01:01]}  Kf7 {[%clk 0:01:34]} 30. Re2 {[%clk 0:00:39]}  c5 {[%clk 0:01:16]} 31. dxc5 {[%clk 0:00:37]}  Bxc5 {[%clk 0:01:17]} 32. Rc2 {[%clk 0:00:31]}  Bg1+ {[%clk 0:01:17]} 0-1


[Site "https://www.chess.com"]

[Event "Titled Tuesday Blitz June 20 Late 2023"]
[White "Bluebaum, Matthias"]
[Black "Berezin, Viktor"]
[WhiteFideId "24651516"]
[BlackFideId "14107872"]
[WhiteElo "2639"]
[BlackElo "2310"]
[Result "1-0"]
[Round "1"]
[TimeControl "180+2"]
[Date "2023.06.20"]
[WhiteClock "0:01:33"]
[BlackClock "0:00:16"]
[Board "11"]

1. d4 {[%clk 0:03:00]}  Nf6 {[%clk 0:02:58]} 2. c4 {[%clk 0:02:58]}  g6 {[%clk 0:02:56]} 3. Nc3 {[%clk 0:02:57]}  Bg7 {[%clk 0:02:57]} 4. e4 {[%clk 0:02:58]}  O-O {[%clk 0:02:57]} 5. Nf3 {[%clk 0:02:59]}  d6 {[%clk 0:02:58]} 6. Be2 {[%clk 0:02:59]}  e5 {[%clk 0:02:56]} 7. Be3 {[%clk 0:03:00]}  Na6 {[%clk 0:02:55]} 8. O-O {[%clk 0:03:00]}  Qe8 {[%clk 0:02:54]} 9. dxe5 {[%clk 0:02:56]}  dxe5 {[%clk 0:02:52]} 10. h3 {[%clk 0:02:56]}  c6 {[%clk 0:02:49]} 11. a3 {[%clk 0:02:57]}  Nh5 {[%clk 0:02:44]} 12. b4 {[%clk 0:02:55]}  Qe7 {[%clk 0:02:39]} 13. c5 {[%clk 0:02:54]}  Nc7 {[%clk 0:02:30]} 14. Qd6 {[%clk 0:02:53]}  Qxd6 {[%clk 0:02:23]} 15. cxd6 {[%clk 0:02:54]}  Ne6 {[%clk 0:02:23]} 16. Rfd1 {[%clk 0:02:53]}  Bd7 {[%clk 0:02:23]} 17. Bc4 {[%clk 0:02:42]}  Nhf4 {[%clk 0:02:16]} 18. Kh2 {[%clk 0:02:36]}  Rfd8 {[%clk 0:02:08]} 19. g3 {[%clk 0:02:30]}  Nh5 {[%clk 0:02:08]} 20. Rac1 {[%clk 0:02:28]}  Kf8 {[%clk 0:01:33]} 21. Na4 {[%clk 0:02:20]}  b6 {[%clk 0:01:20]} 22. Ba6 {[%clk 0:02:20]}  Rab8 {[%clk 0:01:16]} 23. Ng5 {[%clk 0:02:00]}  h6 {[%clk 0:00:58]} 24. Nxe6+ {[%clk 0:02:00]}  fxe6 {[%clk 0:00:59]} 25. Nb2 {[%clk 0:01:57]}  Nf6 {[%clk 0:00:57]} 26. f3 {[%clk 0:01:57]}  Kf7 {[%clk 0:00:56]} 27. Nc4 {[%clk 0:01:50]}  Ne8 {[%clk 0:00:56]} 28. f4 {[%clk 0:01:47]}  exf4 {[%clk 0:00:54]} 29. gxf4 {[%clk 0:01:48]}  g5 {[%clk 0:00:41]} 30. Ne5+ {[%clk 0:01:47]}  Bxe5 {[%clk 0:00:41]} 31. fxe5 {[%clk 0:01:48]}  Ng7 {[%clk 0:00:31]} 32. Rf1+ {[%clk 0:01:47]}  Kg8 {[%clk 0:00:31]} 33. Rf6 {[%clk 0:01:46]}  Kh7 {[%clk 0:00:26]} 34. Rf7 {[%clk 0:01:44]}  Kg6 {[%clk 0:00:24]} 35. Rcf1 {[%clk 0:01:43]}  Nh5 {[%clk 0:00:24]} 36. Be2 {[%clk 0:01:38]}  Be8 {[%clk 0:00:19]} 37. Re7 {[%clk 0:01:37]}  c5 {[%clk 0:00:18]} 38. Rxe6+ {[%clk 0:01:37]}  Kg7 {[%clk 0:00:18]} 39. Re7+ {[%clk 0:01:35]}  Kg6 {[%clk 0:00:18]} 40. Rf8 {[%clk 0:01:32]}  cxb4 {[%clk 0:00:17]} 41. Rg8+ {[%clk 0:01:32]}  Ng7 {[%clk 0:00:16]} 42. Rgxg7# {[%clk 0:01:33]} 1-0


[Site "https://www.chess.com"]

[Event "Titled Tuesday Blitz June 20 Late 2023"]
[White "Siniauski, Artsiom"]
[Black "Andreikin, Dmitry"]
[WhiteFideId "13512269"]
[BlackFideId "4158814"]
[WhiteElo "2065"]
[BlackElo "2736"]
[Result "0-1"]
[Round "1"]
[TimeControl "180+2"]
[Date "2023.06.20"]
[WhiteClock "0:00:16"]
[BlackClock "0:01:22"]
[Board "14"]

1. e4 {[%clk 0:02:54]}  c5 {[%clk 0:02:59]} 2. Nf3 {[%clk 0:02:47]}  g6 {[%clk 0:02:59]} 3. d4 {[%clk 0:02:46]}  cxd4 {[%clk 0:02:59]} 4. Qxd4 {[%clk 0:02:47]}  Nf6 {[%clk 0:02:58]} 5. Nc3 {[%clk 0:02:48]}  Nc6 {[%clk 0:02:58]} 6. Qa4 {[%clk 0:02:48]}  d6 {[%clk 0:02:58]} 7. e5 {[%clk 0:02:49]}  dxe5 {[%clk 0:02:59]} 8. Nxe5 {[%clk 0:02:50]}  Bd7 {[%clk 0:02:59]} 9. Nxd7 {[%clk 0:02:49]}  Qxd7 {[%clk 0:03:00]} 10. Bd3 {[%clk 0:02:50]}  Bg7 {[%clk 0:02:59]} 11. O-O {[%clk 0:02:46]}  O-O {[%clk 0:02:59]} 12. Bf4 {[%clk 0:02:44]}  Rfd8 {[%clk 0:02:41]} 13. Rad1 {[%clk 0:02:41]}  Qg4 {[%clk 0:02:37]} 14. h3 {[%clk 0:02:21]}  Qh4 {[%clk 0:02:37]} 15. Bb5 {[%clk 0:01:41]}  Nh5 {[%clk 0:02:23]} 16. Bc7 {[%clk 0:01:37]}  Rd4 {[%clk 0:02:08]} 17. Rxd4 {[%clk 0:01:33]}  Nxd4 {[%clk 0:02:09]} 18. Rd1 {[%clk 0:01:24]}  Rc8 {[%clk 0:02:07]} 19. g3 {[%clk 0:00:54]}  Nf3+ {[%clk 0:01:27]} 20. Kg2 {[%clk 0:00:53]}  Qxa4 {[%clk 0:01:26]} 21. Nxa4 {[%clk 0:00:35]}  Nd4 {[%clk 0:01:23]} 22. Bf1 {[%clk 0:00:16]}  Rxc7 {[%clk 0:01:22]} 0-1


[Site "https://www.chess.com"]

[Event "Titled Tuesday Blitz June 20 Late 2023"]
[White "Van Foreest, Jorden"]
[Black "Uzcategui Rodriguez, Alejandro"]
[WhiteFideId "1039784"]
[BlackFideId "3903400"]
[WhiteElo "2633"]
[BlackElo "2252"]
[Result "1-0"]
[Round "1"]
[TimeControl "180+2"]
[Date "2023.06.20"]
[WhiteClock "0:01:07"]
[BlackClock "0:00:02"]
[Board "15"]

1. e4 {[%clk 0:03:00]}  e6 {[%clk 0:02:59]} 2. d4 {[%clk 0:03:00]}  d5 {[%clk 0:02:59]} 3. Nc3 {[%clk 0:02:59]}  Nf6 {[%clk 0:03:00]} 4. Qd3 {[%clk 0:02:58]}  dxe4 {[%clk 0:02:58]} 5. Nxe4 {[%clk 0:02:58]}  Be7 {[%clk 0:02:58]} 6. Nf3 {[%clk 0:02:58]}  b6 {[%clk 0:02:57]} 7. Nxf6+ {[%clk 0:02:56]}  Bxf6 {[%clk 0:02:58]} 8. Qe4 {[%clk 0:02:56]}  Qd5 {[%clk 0:02:55]} 9. Qxd5 {[%clk 0:02:49]}  exd5 {[%clk 0:02:55]} 10. Bf4 {[%clk 0:02:50]}  c6 {[%clk 0:02:51]} 11. O-O-O {[%clk 0:02:50]}  O-O {[%clk 0:02:47]} 12. Ne5 {[%clk 0:02:42]}  Bxe5 {[%clk 0:02:41]} 13. Bxe5 {[%clk 0:02:41]}  Bf5 {[%clk 0:02:38]} 14. f3 {[%clk 0:02:34]}  f6 {[%clk 0:02:37]} 15. Bd6 {[%clk 0:02:32]}  Rd8 {[%clk 0:02:36]} 16. Bc7 {[%clk 0:02:32]}  Re8 {[%clk 0:02:31]} 17. g4 {[%clk 0:02:31]}  Bc8 {[%clk 0:02:20]} 18. Bd3 {[%clk 0:02:24]}  Bb7 {[%clk 0:02:19]} 19. Rde1 {[%clk 0:02:19]}  Na6 {[%clk 0:02:16]} 20. Bd6 {[%clk 0:02:11]}  Rad8 {[%clk 0:02:13]} 21. Rxe8+ {[%clk 0:02:01]}  Rxe8 {[%clk 0:02:12]} 22. Kd2 {[%clk 0:01:58]}  Rd8 {[%clk 0:02:10]} 23. Bg3 {[%clk 0:01:53]}  Nb4 {[%clk 0:01:50]} 24. Be2 {[%clk 0:01:30]}  c5 {[%clk 0:01:42]} 25. c3 {[%clk 0:01:24]}  Nc6 {[%clk 0:01:42]} 26. Bf2 {[%clk 0:01:23]}  cxd4 {[%clk 0:01:40]} 27. cxd4 {[%clk 0:01:14]}  Kf7 {[%clk 0:01:25]} 28. Bd3 {[%clk 0:01:13]}  g6 {[%clk 0:01:23]} 29. h4 {[%clk 0:01:14]}  Nb4 {[%clk 0:01:09]} 30. Bb1 {[%clk 0:01:14]}  Re8 {[%clk 0:01:00]} 31. h5 {[%clk 0:01:14]}  Ba6 {[%clk 0:00:55]} 32. Be3 {[%clk 0:01:15]}  Kg7 {[%clk 0:00:26]} 33. hxg6 {[%clk 0:01:14]}  hxg6 {[%clk 0:00:26]} 34. Rh6 {[%clk 0:01:11]}  g5 {[%clk 0:00:22]} 35. Rh7+ {[%clk 0:01:10]}  Kg8 {[%clk 0:00:21]} 36. Rxa7 {[%clk 0:01:10]}  Bb5 {[%clk 0:00:13]} 37. b3 {[%clk 0:01:08]}  Bc6 {[%clk 0:00:02]} 38. a3 {[%clk 0:01:07]} 1-0


[Site "https://www.chess.com"]